[Event "African Individual Chess-ch Open 2024"]
[Site "Accra"]
[Date "2024.03.20"]
[Round "9.10"]
[White "Amoako Philip Selikem Yao"]
[Black "ONOKPITE, Kennedy"]
[Result "0-1"]
[ECO "B07"]
[WhiteElo "1848"]
[BlackElo "2101"]
[Annotator "RC"]
[PlyCount "72"]
[EventDate "2024.03.13"]
[EventCountry "GHA"]
[SourceTitle "playchess.com"]
[Source "ChessBase"]
[SourceQuality "1"]
[TimeControl "5400+30"]

1. e4 {[%emt 0:00:21]} d6 {[%emt 0:00:09]} 2. d4 {[%emt 0:00:10]} Nf6 {[%emt 0:00:07]} 3. Nc3 {[%emt 0:00:19]} c6 {[%emt 0:00:08]} 4. f4 {[%emt 0:01:54]} Qa5 {[%emt 0:00:12]} 5. Bd2 {[%emt 0:01:01]} e5 {[%emt 0:00:11]} 6. Nf3 {[%emt 0:04:58]} Nbd7 {[%emt 0:03:33]} 7. Bd3 {[%emt 0:01:48]} Qc7 {[%emt 0:00:11]} 8. Qe2 {[%emt 0:00:56]} Be7 {[%emt 0:01:19]} 9. O-O-O {[%emt 0:01:40]} b5 {[%emt 0:00:56]} 10. fxe5 {[%emt 0:04:48]} dxe5 {[%emt 0:00:15]} 11. d5 {[%emt 0:00:24]} a6 {[%emt 0:00:12]} 12. dxc6 {[%emt 0:02:41]} Qxc6 {[%emt 0:00:24]} 13. Nd5 {[%emt 0:00:31]} Nxd5 {[%emt 0:03:41]} 14. exd5 {[%emt 0:00:03]} Qxd5 {[%emt 0:00:09]} 15. Bc3 {[%emt 0:10:11]} Qxa2 {[%emt 0:01:16]} 16. Bxe5 {[%emt 0:02:43]} Qe6 {[%emt 0:05:56]} 17. Qe4 {[%emt 0:03:53]} Nxe5 {[%emt 0:06:14]} 18. Qxa8 {[%emt 0:08:36]} Nxd3+ {[%emt 0:00:33]} 19. Rxd3 {[%emt 0:01:09]} O-O {[%emt 0:00:11]} 20. Re1 {[%emt 0:04:33]} Qh6+ {[%emt 0:02:05]} 21. Kb1 {[%emt 0:02:16]} Bf5 {[%emt 0:00:29]} 22. Qd5 {[%emt 0:09:27]} Bxd3 {[%emt 0:02:08]} 23. Rxe7 {[%emt 0:02:44]} Bc4 {[%emt 0:00:21]} 24. Qe4 {[%emt 0:02:51]} Qd6 {[%emt 0:02:32]} 25. b3 {[%emt 0:05:23]} Be6 {[%emt 0:03:21]} 26. Ng5 {[%emt 0:04:02]} g6 {[%emt 0:01:40]} 27. Qh4 {[%emt 0:03:18]} h5 {[%emt 0:01:28]} 28. Ne4 {[%emt 0:06:54]} Qd1+ {[%emt 0:03:40]} 29. Kb2 {[%emt 0:00:19]} Rc8 {[%emt 0:06:13]} 30. Qf2 {[%emt 0:03:52]} Bxb3 {[%emt 0:07:50]} 31. Re8+ {[%emt 0:09:41]} Rxe8 {[%emt 0:01:24]} 32. Nf6+ {[%emt 0:00:12]} Kf8 {[%emt 0:02:27]} 33. Nxe8 {[%emt 0:02:46]} Qxc2+ {[%emt 0:00:23]} 34. Qxc2 {[%emt 0:00:02]} Bxc2 {[%emt 0:00:01]} 35. Nc7 {[%emt 0:00:28]} Be4 {[%emt 0:00:08]} 36. g3 {[%emt 0:00:26]} Bb7 {[%emt 0:00:06]} 0-1

[Event "African Individual Chess-ch Open 2024"]
[Site "Accra"]
[Date "2024.03.20"]
[Round "9.11"]
[White "Ameku, David Selasi"]
[Black "De Gondo, Simplice Armel"]
[Result "0-1"]
[ECO "D43"]
[WhiteElo "1839"]
[BlackElo "2024"]
[Annotator "RC"]
[PlyCount "37"]
[EventDate "2024.03.13"]
[EventCountry "GHA"]
[SourceTitle "playchess.com"]
[Source "ChessBase"]
[SourceQuality "1"]
[TimeControl "5400+30"]

1. d4 {[%emt 0:00:15]} d5 {[%emt 0:00:00]} 2. Nf3 {[%emt 0:00:07]} Nf6 {[%emt 0:00:02]} 3. c4 {[%emt 0:00:08]} c6 {[%emt 0:00:11]} 4. Nc3 {[%emt 0:04:49]} e6 {[%emt 0:00:03]} 5. Bg5 {[%emt 0:01:40]} h6 {[%emt 0:00:01]} 6. Bh4 {[%emt 0:00:14]} dxc4 {[%emt 0:00:02]} 7. a4 {[%emt 0:00:39]} Bb4 {[%emt 0:01:00]} 8. Qc2 {[%emt 0:01:35]} Nbd7 {[%emt 0:03:18]} 9. e3 {[%emt 0:00:11]} b5 {[%emt 0:00:22]} 10. Be2 {[%emt 0:00:18]} Bb7 {[%emt 0:00:03]} 11. O-O {[%emt 0:00:17]} a6 {[%emt 0:00:03]} 12. Rfd1 {[%emt 0:06:39]} Qb6 {[%emt 0:02:19]} 13. e4 {[%emt 0:12:50]} O-O {[%emt 0:00:18]} 14. e5 {[%emt 0:08:21]} Nd5 {[%emt 0:01:39]} 15. Ne4 {[%emt 0:04:04]} c5 {[%emt 0:00:31]} 16. Nd6 {[%emt 0:02:51]} cxd4 {[%emt 0:01:52]} 17. Nxb7 {[%emt 0:02:35]} d3 {[%emt 0:00:30]} 18. Bxd3 {[%emt 0:00:24]} cxd3 {[%emt 0:00:08]} 19. Qb3 {[%emt 0:51:31]} 0-1

[Event "African Individual Chess-ch Open 2024"]
[Site "Accra"]
[Date "2024.03.20"]
[Round "9.12"]
[White "Adewole, Adeyinka Samuel"]
[Black "Frempong-Smart Daniel"]
[Result "1-0"]
[ECO "A03"]
[WhiteElo "1935"]
[BlackElo "1877"]
[Annotator "RC"]
[PlyCount "55"]
[EventDate "2024.03.13"]
[EventCountry "GHA"]
[SourceTitle "playchess.com"]
[Source "ChessBase"]
[SourceQuality "1"]
[TimeControl "5400+30"]

1. f4 {[%emt 0:05:29]} d5 {[%emt 0:00:09]} 2. Nf3 {[%emt 0:00:05]} Nh6 {[%emt 0:00:12]} 3. e3 {[%emt 0:00:19]} Bg4 {[%emt 0:00:09]} 4. b3 {[%emt 0:00:26]} e6 {[%emt 0:01:08]} 5. Bb2 {[%emt 0:00:17]} Nf5 {[%emt 0:00:20]} 6. Be2 {[%emt 0:00:48]} Bxf3 {[%emt 0:00:16]} 7. Bxf3 {[%emt 0:00:12]} Qh4+ {[%emt 0:00:17]} 8. g3 {[%emt 0:00:51]} Qd8 {[%emt 0:06:28]} 9. Qe2 {[%emt 0:01:03]} Nd6 {[%emt 0:00:26]} 10. d3 {[%emt 0:01:01]} c6 {[%emt 0:11:48]} 11. Nd2 {[%emt 0:00:25]} Rg8 {[%emt 0:00:39]} 12. O-O-O {[%emt 0:01:50]} Nd7 {[%emt 0:00:40]} 13. e4 {[%emt 0:00:11]} Be7 {[%emt 0:00:14]} 14. g4 {[%emt 0:00:32]} Qa5 {[%emt 0:01:51]} 15. f5 {[%emt 0:01:14]} Qxa2 {[%emt 0:09:58]} 16. fxe6 {[%emt 0:00:28]} fxe6 {[%emt 0:00:15]} 17. exd5 {[%emt 0:00:06]} exd5 {[%emt 0:00:11]} 18. Qe6 {[%emt 0:01:54]} Rf8 {[%emt 0:05:26]} 19. Rde1 {[%emt 0:00:21]} Nc8 {[%emt 0:00:46]} 20. g5 {[%emt 0:05:38]} g6 {[%emt 0:10:06]} 21. Bg4 {[%emt 0:00:43]} Ndb6 {[%emt 0:02:17]} 22. Bf6 {[%emt 0:02:20]} Qa3+ {[%emt 0:00:33]} 23. Kd1 {[%emt 0:01:56]} Kd8 {[%emt 0:00:39]} 24. Rhf1 {[%emt 0:13:34]} Bxf6 {[%emt 0:06:47]} 25. Rxf6 {[%emt 0:01:32]} a5 {[%emt 0:18:51]} 26. Rf7 {[%emt 0:00:34]} Rxf7 {[%emt 0:01:10]} 27. Qxf7 {[%emt 0:01:31]} Ne7 {[%emt 0:01:48]} 28. Qf8+ {[%emt 0:00:13]} 1-0

[Event "African Individual Chess-ch Open 2024"]
[Site "Accra"]
[Date "2024.03.20"]
[Round "9.13"]
[White "Fomevor, Cephas Clinton"]
[Black "Rongwane, Gomolemo"]
[Result "1-0"]
[ECO "E11"]
[WhiteElo "1887"]
[BlackElo "2021"]
[Annotator "RC"]
[PlyCount "147"]
[EventDate "2024.03.13"]
[EventCountry "GHA"]
[SourceTitle "playchess.com"]
[Source "ChessBase"]
[SourceQuality "1"]
[TimeControl "5400+30"]

1. d4 {[%emt 0:00:30]} Nf6 {[%emt 0:00:30]} 2. c4 {[%emt 0:00:30]} e6 {[%emt 0:00:30]} 3. Nf3 {[%emt 0:00:30]} Bb4+ {[%emt 0:00:30]} 4. Bd2 {[%emt 0:00:30]} a5 {[%emt 0:00:30]} 5. a3 {[%emt 0:00:30]} Be7 {[%emt 0:00:30]} 6. Nc3 {[%emt 0:00:30]} d5 {[%emt 0:00:30]} 7. Bg5 {[%emt 0:00:30]} O-O {[%emt 0:00:30]} 8. e3 {[%emt 0:00:30]} h6 {[%emt 1:31:00]} 9. Bh4 {[%emt 0:04:12]} Nbd7 {[%emt 0:00:00]} 10. Be2 {[%emt 1:27:18]} c6 {[%emt 0:00:00]} 11. O-O {[%emt 0:00:00]} Ne8 {[%emt 0:00:00]} 12. Bg3 {[%emt 0:00:00]} f5 {[%emt 0:00:00]} 13. Ne5 {[%emt 0:00:00]} Nxe5 {[%emt 0:00:00]} 14. Bxe5 {[%emt 0:00:00]} Nd6 {[%emt 0:00:00]} 15. cxd5 {[%emt 0:00:00]} exd5 {[%emt 0:00:00]} 16. Rc1 {[%emt 0:00:00]} Nf7 {[%emt 0:00:00]} 17. f4 {[%emt 0:00:00]} b5 {[%emt 0:00:00]} 18. Nb1 {[%emt 0:00:00]} Bd7 {[%emt 0:00:00]} 19. Nd2 {[%emt 0:00:00]} a4 {[%emt 0:00:00]} 20. g4 {[%emt 0:00:00]} Qb6 {[%emt 0:00:00]} 21. gxf5 {[%emt 0:00:00]} Bxf5 {[%emt 0:00:00]} 22. Bg4 {[%emt 0:00:00]} Nd6 {[%emt 0:00:00]} 23. Bxd6 {[%emt 0:00:00]} Bxd6 {[%emt 0:00:00]} 24. Bxf5 {[%emt 0:00:00]} Rxf5 {[%emt 0:00:00]} 25. Qc2 {[%emt 0:00:00]} Raf8 {[%emt 0:00:00]} 26. Qxc6 {[%emt 0:00:00]} Qa5 {[%emt 0:00:00]} 27. Nb1 {[%emt 0:00:00]} R8f6 {[%emt 0:00:00]} 28. Nc3 {[%emt 0:00:00]} b4 {[%emt 0:00:00]} 29. axb4 {[%emt 0:00:00]} Bxb4 {[%emt 0:00:00]} 30. Qe8+ {[%emt 0:00:00]} Kh7 {[%emt 0:00:00]} 31. Rc2 {[%emt 0:06:37]} a3 {[%emt 0:00:00]} 32. Na2 {[%emt 0:02:50]} Rg6+ {[%emt 0:00:00]} 33. Kh1 {[%emt 0:00:55]} Rf8 {[%emt 0:00:00]} 34. Qd7 {[%emt 0:00:48]} Bd6 {[%emt 0:00:00]} 35. bxa3 {[%emt 0:00:37]} Qxa3 {[%emt 0:00:00]} 36. Nc3 {[%emt 0:00:38]} Qb3 {[%emt 0:00:00]} 37. Rfc1 {[%emt 0:00:30]} Bxf4 {[%emt 0:00:00]} 38. exf4 {[%emt 0:00:29]} Rxf4 {[%emt 0:00:00]} 39. Qh3 {[%emt 0:00:33]} Rfg4 {[%emt 0:00:00]} 40. Qd3 {[%emt 0:00:30]} Qb7 {[%emt 0:00:00]} 41. Ne2 {[%emt 0:00:00]} Qf7 {[%emt 0:00:00]} 42. Ng3 {[%emt 0:00:00]} Qf4 {[%emt 0:00:00]} 43. Nf5 {[%emt 0:00:00]} Qg5 {[%emt 0:00:00]} 44. Ng3 {[%emt 0:00:00]} h5 {[%emt 0:00:00]} 45. Rc6 {[%emt 0:00:00]} h4 {[%emt 0:00:00]} 46. Qxg6+ {[%emt 0:00:00]} Qxg6 {[%emt 0:00:00]} 47. Rxg6 {[%emt 0:00:00]} Kxg6 {[%emt 0:00:00]} 48. Ne2 {[%emt 0:00:00]} Kf5 {[%emt 0:00:00]} 49. Rg1 {[%emt 0:00:00]} Re4 {[%emt 0:00:00]} 50. Rg2 {[%emt 0:00:00]} g5 {[%emt 0:00:00]} 51. Kg1 {[%emt 0:00:00]} Re3 {[%emt 0:00:00]} 52. Kf2 {[%emt 0:00:00]} Rh3 {[%emt 0:00:00]} 53. Ng1 {[%emt 0:00:00]} Rd3 {[%emt 0:00:00]} 54. Nf3 {[%emt 0:00:00]} g4 {[%emt 0:00:00]} 55. Rxg4 {[%emt 0:00:00]} Kxg4 {[%emt 0:00:00]} 56. Ne5+ {[%emt 0:00:00]} Kf4 {[%emt 0:00:00]} 57. Nxd3+ {[%emt 0:00:00]} Ke4 {[%emt 0:00:00]} 58. Ne1 {[%emt 0:00:48]} Kxd4 {[%emt 0:00:00]} 59. Nf3+ {[%emt 0:00:05]} Ke4 {[%emt 0:00:00]} 60. Nxh4 {[%emt 0:00:12]} Kf4 {[%emt 0:00:00]} 61. Nf3 {[%emt 0:00:16]} Kg4 {[%emt 0:00:00]} 62. Kg2 {[%emt 0:00:39]} Kf4 {[%emt 0:00:00]} 63. h3 {[%emt 0:00:32]} Ke4 {[%emt 0:00:00]} 64. Kg3 {[%emt 0:00:15]} Kf5 {[%emt 0:00:00]} 65. h4 {[%emt 0:00:15]} Kg6 {[%emt 0:00:00]} 66. Kg4 {[%emt 0:00:16]} Kh6 {[%emt 0:00:00]} 67. h5 {[%emt 0:00:29]} Kg7 {[%emt 0:00:00]} 68. Kg5 {[%emt 0:00:13]} Kh7 {[%emt 0:00:00]} 69. Nd4 {[%emt 0:01:55]} Kg8 {[%emt 0:00:00]} 70. Kg6 {[%emt 0:00:16]} Kh8 {[%emt 0:00:00]} 71. h6 {[%emt 0:00:30]} Kg8 {[%emt 0:00:00]} 72. Nc6 {[%emt 0:01:13]} Kh8 {[%emt 0:00:00]} 73. Ne5 {[%emt 0:00:29]} d4 {[%emt 0:00:00]} 74. h7 {[%emt 0:00:20]} 1-0